bitfinex/quotes_ETHUSD_20250721
["timestamp","ask_amount","ask_price","bid_price","bid_amount"]
[1753115493859,0.4444,3779.4,3777.5,2.64722488]
[1753115494099,2.64611048,3779.2,3778.4,2.6466229]
[1753115494300,2.64606663,3779.2,3778.4,4.418]
[1753115494597,0.8119,3779.3,3778.4,4.418]
[1753115494794,2.64635232,3778.8,3778.5,4.418]
[1753115494994,0.55,3779.2,3778.5,4.418]
[1753115495193,0.8119,3779.3,3778.2,0.4529]
[1753115495395,0.8119,3779.3,3777.9,3.0]
[1753115495396,0.4444,3779.2,3778.3,4.417]
[1753115495601,2.64608078,3779.2,3778.5,2.64654685]
[1753115495767,2.64608078,3779.2,3778.4,2.64659717]
[1753115495970,2.64625765,3779.0,3778.4,4.417]
[1753115496282,2.64626467,3779.0,3778.4,4.417]
[1753115496591,1.2563,3779.3,3778.5,2.64652528]
[1753115496799,2.64606265,3779.2,3778.5,2.64652528]
[1753115497201,2.64615827,3779.1,3778.4,4.416]
[1753115497404,3.90230097,3779.3,3778.6,2.64643484]
[1753115497405,3.90230801,3779.3,3778.6,2.64643484]
[1753115497702,0.8119,3779.3,3778.6,2.64648282]
[1753115498007,0.8119,3779.3,3778.2,0.58934314]
[1753115498008,3.0,3780.5,3778.2,0.58934314]
[1753115498009,0.69539453,3782.7,3779.4,0.7947]
[1753115498224,0.69539453,3782.7,3778.7,3.0]
[1753115498225,0.69539453,3782.7,3779.5,0.02645852]
[1753115498226,2.64499056,3780.8,3779.5,0.02645852]
[1753115498499,2.64529472,3780.3,3779.3,3.0]
[1753115498706,2.64563626,3779.9,3779.1,3.0]
[1753115498883,3.08981027,3780.2,3779.1,2.64778204]
[1753115499195,0.4444,3780.1,3779.1,0.00165898]
[1753115499700,2.6459016,3779.5,3779.1,0.00165898]
[1753115499864,0.55,3780.0,3779.1,0.00165898]
[1753115499865,2.64605078,3779.3,3779.1,0.00165898]
[1753115500064,2.64601242,3779.3,3779.1,0.00165898]
[1753115500275,3.09046265,3779.2,3779.1,0.00165898]
[1753115500824,4.69759016,3779.4,3779.1,0.00165898]
[1753115500988,4.432,3779.5,3779.1,0.00165898]
[1753115501318,0.4444,3779.3,3779.1,0.00165898]
[1753115501482,2.64606265,3779.2,3779.1,0.00165898]
[1753115501685,3.09046265,3779.2,3779.1,0.00165898]
[1753115501978,7.46536265,3779.2,3779.1,0.00165898]
[1753115502183,10.09289658,3779.2,3779.1,0.00165898]
[1753115502406,24.59289658,3779.2,3779.1,0.00165898]
[1753115502615,2.64669295,3778.3,3778.2,0.19445486]
[1753115502811,0.55,3778.2,3777.3,0.047221]
[1753115502994,2.6471005,3777.8,3777.4,0.1176012]
[1753115503521,2.64714242,3777.7,3777.4,0.1176012]
[1753115503729,0.132,3777.5,3777.4,0.1176012]
[1753115505020,8.52835347,3777.5,3777.4,0.1176012]
[1753115505189,3.19732355,3777.4,3777.3,0.02074707]
[1753115505391,8.06844311,3777.4,3776.2,0.20129273]
[1753115505594,2.78020172,3776.2,3775.4,0.8256]
[1753115505791,0.132,3776.0,3775.4,0.8256]
[1753115506116,4.423,3776.3,3775.5,0.4529]
[1753115506283,7.07115018,3776.3,3775.6,5.64858147]
[1753115506481,4.423,3776.3,3775.6,5.64858147]
[1753115506916,2.64807403,3776.4,3775.6,5.64858147]
[1753115507082,5.1971,3776.5,3775.8,3.0]
[1753115507416,5.1971,3776.5,3775.5,3.4529]
[1753115507602,5.1961,3776.5,3775.6,0.02648585]
[1753115507915,1.792,3776.9,3775.8,3.0]
[1753115508225,4.415,3776.8,3775.8,0.4386]
[1753115508729,4.415,3776.8,3776.0,2.64825511]
[1753115508878,7.06384043,3776.7,3776.0,2.64825511]
[1753115509081,0.7976,3776.9,3775.8,0.02648445]
[1753115509284,0.7753,3777.4,3776.1,0.4386]
[1753115509578,4.416,3777.3,3776.4,2.6479646]
[1753115509784,4.416,3777.3,3776.5,2.6479425]
[1753115509785,2.64746723,3777.2,3776.5,2.6479425]
[1753115510019,7.06339533,3777.3,3776.4,2.64802457]
[1753115510320,4.416,3777.3,3776.5,3.08655162]
[1753115510521,4.416,3777.3,3776.8,2.64773212]
[1753115510730,0.7753,3777.4,3776.3,0.79818094]
[1753115510905,4.416,3777.5,3776.9,3.08625312]
[1753115511079,4.416,3777.5,3777.0,2.64759139]
[1753115511282,4.416,3777.5,3776.9,0.4386]
[1753115511283,4.416,3777.5,3776.9,2.64766429]
[1753115511520,7.06330735,3777.5,3776.8,2.64768082]
[1753115511920,7.06320587,3777.6,3776.5,0.4386]
[1753115512125,4.416,3777.6,3776.8,2.64768371]
[1753115512424,4.416,3777.6,3776.9,2.64766749]
[1753115512625,3.10351451,3777.7,3776.8,2.64774321]
[1753115512825,3.10351451,3777.7,3776.5,0.46507954]
[1753115512826,1.02035638,3777.7,3776.5,0.46507954]
[1753115513038,0.7501,3777.8,3777.0,2.64756303]
[1753115513215,2.64718928,3777.6,3776.9,2.64765507]
[1753115513390,4.416,3777.5,3776.5,0.4386]
[1753115513583,4.416,3777.5,3777.3,2.64737618]
[1753115513784,4.416,3777.5,3776.9,2.64762122]
[1753115513984,4.416,3777.5,3776.8,0.02647744]
[1753115514194,3.39721223,3777.8,3777.0,2.64759581]
[1753115514417,7.0631151,3777.7,3777.0,2.6475522]
[1753115514788,4.416,3777.6,3777.0,2.6475522]
[1753115515221,4.416,3777.6,3777.1,2.64752741]
[1753115515825,4.416,3777.6,3777.0,2.64759344]
[1753115516202,0.132,3777.3,3777.0,2.64759344]
[1753115516704,0.132,3777.3,3777.1,2.64752281]
[1753115517101,0.132,3777.3,3777.2,2.64746372]
[1753115517303,0.132,3777.5,3777.2,3.08606372]
[1753115517514,0.132,3777.5,3777.4,2.64727379]
[1753115518040,0.132,3777.5,3777.4,3.08587379]
[1753115518192,4.415,3778.1,3777.4,3.28799127]
[1753115518386,4.415,3778.1,3777.4,0.64071748]
[1753115518387,0.132,3777.8,3777.4,0.64071748]
[1753115518593,0.132,3777.8,3777.7,2.64711332]
[1753115519795,0.132,3777.8,3777.5,3.08583541]
[1753115520040,0.132,3777.8,3777.5,3.4386]
[1753115520328,0.132,3777.8,3777.7,2.64711332]
[1753115520895,3.19848401,3778.6,3777.7,2.64711332]
[1753115520896,0.002,3778.6,3778.0,2.64684322]
[1753115521129,0.002,3778.6,3777.8,2.64700974]
[1753115521130,0.132,3778.3,3777.8,0.02647043]
[1753115521435,4.415,3778.5,3777.4,0.2002916]
[1753115521600,0.55,3778.1,3777.4,2.64730379]
[1753115522035,0.55,3778.1,3777.0,0.4386]
[1753115522343,0.55,3778.1,3777.5,2.64720917]
[1753115522926,0.4457872,3778.3,3777.4,0.20005344]
[1753115523140,0.55,3778.4,3777.7,2.64709114]
[1753115523296,4.414,3778.3,3777.7,2.64709114]
[1753115523501,4.414,3778.3,3777.8,2.64704325]
[1753115523701,7.060701,3778.3,3777.7,2.64708968]
[1753115523915,2.6469995,3777.9,3776.7,0.4386]
[1753115524112,2.6469995,3777.9,3777.2,2.64740396]
[1753115524344,3.40454574,3778.1,3777.4,2.6473057]
[1753115524726,0.7577,3778.1,3777.0,0.4386]
[1753115524930,2.64701527,3777.9,3777.2,2.64745015]
[1753115525445,2.64693096,3778.0,3777.1,5.64751323]
[1753115525614,2.64693096,3778.0,3777.3,2.64734701]
[1753115525813,1.73927166,3778.0,3777.0,0.4386]
[1753115526019,1.73927166,3778.0,3776.2,3.0]
[1753115526020,2.64744214,3777.3,3776.6,2.64788248]
[1753115526223,5.6287,3777.5,3776.6,2.6478341]
[1753115526403,3.1973721,3777.4,3776.6,2.6478341]
[1753115526603,3.19735486,3777.4,3776.2,2.64810091]
[1753115526811,3.19735486,3777.4,3776.1,0.02648234]
[1753115526812,2.64744982,3777.3,3776.4,3.0]
[1753115527003,5.6287,3777.5,3776.4,3.4386]
[1753115527004,0.7583,3777.5,3776.4,3.4386]
[1753115527198,4.414,3777.4,3776.8,2.64769041]
[1753115527402,4.414,3777.4,3776.9,2.64765278]
[1753115527624,0.7583,3777.5,3776.9,2.64765278]
[1753115527944,3.40556794,3777.5,3776.8,2.64773627]
[1753115528137,3.40556888,3777.5,3776.8,2.64773526]
[1753115528499,0.4564,3777.9,3776.9,0.4386]
[1753115528500,0.7727,3777.9,3776.9,0.4386]
[1753115528705,0.7727,3777.9,3777.0,0.02647603]
[1753115528933,0.7727,3777.9,3777.2,2.64742583]
[1753115529100,0.7727,3777.9,3777.0,2.64759506]
[1753115529320,2.64719436,3777.6,3776.9,0.4386]
[1753115529516,2.64726818,3777.5,3776.8,2.64769726]
[1753115529722,2.64734529,3777.4,3776.6,3.8046]
[1753115529922,2.64734529,3777.4,3776.6,3.0]
[1753115530644,0.3433,3777.7,3776.2,1.2238]
[1753115530645,0.55,3777.6,3776.2,1.2238]
[1753115530941,2.64728296,3777.5,3776.8,3.0]
[1753115531244,0.55,3777.3,3776.4,5.6480144]
[1753115531448,0.132,3776.7,3776.4,5.6480144]
[1753115531652,0.132,3776.7,3776.1,2.78022681]
[1753115531809,0.55,3777.0,3776.1,3.0]
[1753115532006,0.132,3776.4,3776.1,3.0]
[1753115532231,0.132,3776.4,3776.3,3.0]
[1753115532911,0.132,3776.4,3776.2,3.0]
[1753115533217,0.132,3776.4,3776.3,5.64809469]
[1753115533421,4.412,3777.1,3776.5,2.6478971]
[1753115533726,2.6475076,3777.2,3776.5,2.6478971]
[1753115533932,0.132,3776.5,3776.3,0.4386]
[1753115534121,0.132,3776.5,3776.0,0.02648305]
[1753115534122,0.132,3776.5,3776.4,3.0]
[1753115534463,0.132,3776.5,3776.4,5.64802457]
[1753115534609,0.132,3776.5,3776.4,3.0]
[1753115534809,0.132,3776.5,3776.4,5.64802457]
[1753115535211,0.132,3776.5,3775.9,0.001]
[1753115535443,0.132,3776.3,3776.0,3.0]
[1753115535621,0.132,3776.3,3775.9,3.001]
[1753115535851,0.132,3776.3,3776.2,2.64816482]
[1753115536568,0.132,3776.3,3776.1,2.64821334]
[1753115536715,0.132,3776.3,3776.0,3.12057758]
[1753115536910,0.132,3776.3,3776.1,2.64822957]
[1753115537312,0.132,3776.3,3776.2,2.64816482]
[1753115537511,0.132,3776.3,3776.2,3.12046482]
[1753115538755,0.132,3776.3,3776.1,2.64823452]
[1753115538938,0.132,3776.3,3775.9,0.001]
[1753115539146,2.64797262,3776.5,3775.9,0.001]
[1753115539313,0.132,3776.2,3775.9,2.64937493]
[1753115539716,0.132,3776.2,3776.0,0.4723]
[1753115540166,0.132,3776.2,3776.0,2.6482375]
[1753115540315,0.132,3776.2,3776.1,2.64823495]
[1753115540752,0.132,3776.2,3775.9,0.001]
[1753115541152,0.4496,3776.7,3775.9,0.001]
[1753115541353,4.411,3776.7,3776.1,2.648182]
[1753115541558,5.2128,3776.8,3776.3,2.64805026]
[1753115541850,0.4496,3777.5,3776.4,0.4723]
[1753115541851,0.7961,3777.1,3776.4,0.4723]
[1753115542055,0.132,3776.5,3776.4,0.4723]
[1753115542262,0.132,3776.5,3776.4,6.12032457]
[1753115542462,0.132,3777.1,3776.4,0.6043]
[1753115542616,2.64748887,3777.2,3776.4,0.4723]
[1753115542816,0.7961,3777.3,3776.3,0.02648094]
[1753115543119,0.132,3776.8,3776.7,2.64781422]
[1753115543954,0.132,3776.8,3776.7,3.12011422]
[1753115544211,0.132,3776.8,3776.4,3.0]
[1753115544375,0.132,3776.8,3776.3,0.02648094]
[1753115544563,0.132,3776.5,3775.9,0.02748375]
[1753115544764,0.132,3776.5,3776.1,3.0]
[1753115545314,0.132,3776.5,3776.3,2.6480746]
[1753115545659,2.64747655,3777.2,3776.4,0.4723]
[1753115545875,0.132,3776.7,3776.6,2.64783664]
[1753115546085,0.132,3776.7,3776.6,0.4723]
[1753115546687,0.132,3776.7,3776.6,2.64788434]
[1753115546886,0.7961,3777.3,3776.4,2.64802457]
[1753115547091,0.132,3777.1,3776.6,0.4723]
[1753115547286,0.132,3777.1,3776.7,2.64781422]
[1753115547602,0.132,3777.1,3776.9,2.64767401]
[1753115548399,0.132,3777.1,3776.7,2.64780991]
[1753115548400,0.132,3777.1,3776.6,0.4723]
[1753115548699,0.132,3777.1,3776.9,2.6476523]
[1753115549080,0.132,3777.1,3776.7,3.12004531]
[1753115549286,0.132,3777.1,3776.8,2.64774278]
[1753115549485,0.132,3777.1,3776.5,0.02647954]
[1753115549881,0.132,3777.1,3776.7,2.64781422]
[1753115550104,0.132,3777.1,3776.8,2.64769162]
[1753115550325,0.132,3777.1,3777.0,2.64760391]
[1753115550922,0.132,3777.1,3776.6,5.64783706]
[1753115551122,0.132,3776.8,3776.7,2.64779975]
[1753115551681,0.132,3776.8,3776.3,0.19684658]
[1753115552011,0.4496,3777.1,3776.3,4.407]
[1753115552208,0.132,3776.6,3776.2,0.132]
[1753115552385,0.119312,3776.6,3776.5,5.64795445]
[1753115553107,0.119312,3776.6,3776.5,6.12025445]
[1753115554618,0.7961,3777.3,3777.0,2.64529749]
[1753115554785,0.132,3777.1,3776.7,2.64780835]
[1753115554987,0.132,3777.1,3776.7,3.12010835]
[1753115555210,0.132,3777.1,3776.8,2.64768492]
[1753115555516,0.132,3777.1,3776.9,2.64765783]
[1753115555718,0.132,3777.1,3776.7,0.4723]
[1753115555920,0.132,3777.1,3776.6,2.67434247]
[1753115556122,0.132,3777.1,3776.8,2.64767545]
[1753115556489,0.132,3777.1,3776.9,2.64766661]
[1753115557018,0.132,3777.1,3776.9,2.64766176]
[1753115557613,0.132,3777.1,3776.5,3.0]
[1753115557920,0.132,3776.7,3776.5,3.0]
[1753115558491,0.132,3776.7,3776.5,5.64789504]
[1753115559026,0.132,3776.7,3776.5,3.0]
[1753115559226,0.132,3776.7,3776.5,5.64794726]
[1753115559525,0.132,3776.7,3776.5,5.64793176]
[1753115559825,0.132,3776.7,3776.5,5.64792676]
[1753115560029,0.132,3776.7,3776.6,2.64788434]
[1753115560528,0.132,3776.7,3776.5,3.0]
[1753115561115,0.132,3776.7,3776.6,2.64788434]
[1753115561427,0.132,3776.7,3776.5,5.64792827]
[1753115561838,0.132,3776.7,3776.6,2.64788434]
[1753115562135,0.132,3777.0,3776.6,0.4723]
[1753115562304,0.132,3777.0,3776.7,2.64781422]
[1753115562498,0.132,3777.0,3776.8,3.12004308]
[1753115563027,0.132,3777.0,3776.3,0.32872553]
[1753115563203,3.41022457,3776.4,3776.3,0.19672553]
[1753115563402,2.64820824,3776.2,3775.5,7.05060112]
[1753115563592,1.2118,3776.4,3775.7,3.0]
[1753115563796,0.132,3776.0,3775.9,2.64933321]
[1753115563994,0.132,3776.0,3775.9,0.001]
[1753115564227,0.7947,3776.7,3776.1,2.64821905]
[1753115564469,0.132,3776.4,3776.1,2.64821905]
[1753115565042,0.132,3776.4,3776.3,2.64809469]
[1753115565238,5.1957,3777.2,3776.6,2.64783426]
[1753115565437,0.132,3776.8,3776.6,2.64788035]
[1753115565652,0.132,3776.8,3776.7,2.64781422]
[1753115565857,0.7947,3777.2,3776.8,2.64771187]
[1753115566068,0.132,3777.1,3776.8,2.64771187]
[1753115566242,0.132,3777.1,3776.6,3.14660136]
[1753115566769,0.7947,3777.2,3776.5,0.001]
[1753115566770,2.64766113,3777.0,3776.5,0.001]
[1753115566972,0.132,3776.8,3776.5,0.001]
[1753115567453,0.132,3776.8,3776.6,2.64786595]
[1753115568039,0.132,3776.8,3776.5,3.10183369]
[1753115568240,0.132,3776.8,3776.5,0.4539]
[1753115568553,0.132,3776.8,3776.5,2.64893889]
[1753115568758,0.132,3776.8,3776.5,0.001]
[1753115568961,0.132,3776.8,3776.6,0.4529]
[1753115569199,0.132,3776.8,3776.7,2.64781422]
[1753115569555,0.132,3776.8,3776.7,3.10071422]
[1753115569755,2.64721021,3777.6,3776.7,3.10071422]
[1753115569756,0.7591,3777.7,3777.3,2.64738301]
[1753115569956,0.132,3777.2,3777.1,2.64753382]
[1753115570216,0.132,3777.2,3777.1,3.10043382]
[1753115570359,2.64693136,3778.0,3777.1,3.10043382]
[1753115570360,0.8202,3778.1,3777.7,2.64708222]
[1753115570554,0.8202,3778.1,3777.5,2.64722734]
[1753115570555,0.132,3777.8,3777.5,2.64722734]
[1753115570983,0.132,3777.8,3777.5,2.64719378]
[1753115571180,0.132,3777.8,3777.6,2.64716787]
[1753115571380,0.132,3777.8,3777.5,2.64723223]
[1753115571695,0.132,3777.8,3777.6,2.64716706]
[1753115571895,0.132,3777.8,3777.1,0.132]
[1753115572116,0.88628152,3784.6,3777.3,0.8195]
[1753115572263,10.75851252,3780.0,3778.9,1.52017268]
[1753115572458,0.132,3779.3,3777.8,0.8195]
[1753115572773,0.4371,3779.9,3776.7,2.64778362]
[1753115572774,0.132,3778.2,3777.5,0.132]
[1753115572983,0.132,3778.2,3778.1,2.64683306]
[1753115573203,3.90725958,3779.8,3778.8,0.132]
[1753115573501,3.90725958,3779.8,3778.4,0.4529]
[1753115573502,4.95472596,3779.7,3778.4,0.4529]
[1753115573666,4.95472596,3779.7,3778.5,2.64653648]
[1753115573867,0.4371,3779.6,3778.2,3.41345996]
[1753115574062,0.4371,3779.6,3778.2,0.7667]
[1753115574285,3.08288333,3779.6,3778.5,2.64654268]
[1753115574602,4.98981093,3779.5,3778.2,0.7667]
[1753115574800,0.4371,3779.4,3778.2,0.7667]
[1753115574965,2.64613561,3779.1,3778.2,0.7667]
[1753115575300,0.4371,3779.0,3778.2,0.19819077]
[1753115575496,3.08331208,3779.0,3778.0,0.13652746]
[1753115575793,2.64627695,3778.9,3778.3,0.02646692]
[1753115575994,2.64627272,3778.9,3778.1,0.22881773]
[1753115576201,4.553,3778.8,3778.4,0.22879956]
[1753115576564,4.9901,3778.8,3778.4,0.22879956]
[1753115577286,0.57293786,3779.0,3778.4,0.22879956]
[1753115577287,2.64655286,3778.5,3778.4,0.22879956]
[1753115577598,7.62965286,3778.5,3778.4,0.22879956]
[1753115577798,3.89925286,3778.5,3778.4,0.22879956]
[1753115577989,8.99525286,3778.5,3778.4,0.22879956]
[1753115578561,3.89925286,3778.5,3778.4,0.22879956]
[1753115578761,4.55382403,3778.5,3778.4,0.22879956]
[1753115579165,9.09582403,3778.5,3778.4,0.22879956]
[1753115579709,2.64697318,3777.9,3777.8,0.19891977]
[1753115580017,2.64697318,3777.9,3776.6,3.10076669]
[1753115580018,4.538,3777.9,3776.7,0.02647814]
[1753115580211,2.64716972,3777.7,3776.7,0.02647814]
[1753115580504,0.7631,3778.9,3777.6,0.807]
[1753115580676,0.4371,3779.5,3778.0,10.75851252]
[1753115580677,4.536,3779.1,3778.0,10.75851252]
[1753115580997,4.536,3779.1,3778.1,3.12618803]
[1753115581202,4.536,3779.1,3778.1,0.02646833]
[1753115581375,2.64641547,3778.7,3777.7,2.67356551]
[1753115581576,3.8778243,3779.0,3777.6,0.807]
[1753115581577,2.64654053,3778.6,3777.6,0.807]
[1753115581968,4.532,3778.8,3777.7,3.12648445]
[1753115582185,7.17839544,3778.8,3777.7,0.47937113]
[1753115582389,0.4371,3779.0,3777.7,0.02647113]
[1753115582587,4.53,3778.9,3778.0,2.64689295]
[1753115582920,0.4371,3779.5,3778.2,0.7542]
[1753115583067,0.132,3779.2,3778.5,3.132]
[1753115583269,0.132,3779.2,3778.7,3.0]
[1753115583498,0.132,3779.2,3778.8,0.02646342]
[1753115583885,2.77798109,3779.4,3778.8,0.02646342]
[1753115584086,2.77798109,3779.4,3778.9,0.21275574]
[1753115584087,3.32035112,3779.4,3778.9,0.21275574]
[1753115584296,0.4371,3779.3,3778.5,3.132]
[1753115584499,3.08309367,3779.3,3778.5,3.33530494]
[1753115584695,0.132,3779.1,3778.5,3.33530494]
[1753115584902,0.132,3779.1,3778.6,0.22676981]
[1753115585131,2.77818713,3779.1,3778.6,0.22676981]
[1753115585447,2.77818713,3779.1,3778.5,0.33530494]
[1753115585448,0.132,3778.8,3778.7,0.20029969]
[1753115586490,2.6459276,3779.4,3778.7,0.20029969]
[1753115586689,0.132,3779.0,3778.7,0.20029969]
[1753115587809,0.132,3778.8,3778.7,0.20029969]
[1753115587975,0.5691,3778.8,3778.7,0.20029969]
[1753115588479,0.132,3778.8,3778.7,0.20029969]
[1753115588880,3.21544275,3778.8,3778.7,0.20029969]
[1753115589289,0.5691,3778.8,3778.7,0.20029969]
[1753115589492,0.132,3778.8,3778.7,0.20029969]
[1753115589897,0.002,3779.5,3778.7,0.20029969]
[1753115590099,0.132,3779.1,3778.7,4.11209941]
[1753115590298,0.132,3779.1,3778.7,1.49216381]
[1753115590496,0.002,3779.5,3778.8,0.61136342]
[1753115590695,0.132,3779.8,3779.7,2.64571262]
[1753115590899,0.7873,3780.6,3779.8,2.64557907]
[1753115591114,0.132,3780.3,3779.8,2.64557907]
[1753115591317,0.132,3780.3,3779.9,2.64556216]
[1753115591522,0.132,3780.3,3779.7,2.67216095]
[1753115591523,0.132,3780.3,3779.8,2.64562015]
[1753115591808,2.77712379,3780.6,3779.9,0.97095572]
[1753115591977,0.132,3780.6,3780.4,3.0]
[1753115592179,0.132,3780.6,3780.1,3.0]
[1753115592427,0.132,3780.6,3780.3,3.0]
[1753115592638,0.132,3780.6,3780.5,2.64515275]
[1753115592794,0.132,3780.6,3780.2,0.02645362]
[1753115592980,0.132,3780.6,3780.2,0.22100056]
[1753115593180,0.132,3780.6,3780.3,0.19851522]
[1753115593502,0.132,3780.6,3780.3,3.19851522]
[1753115593796,0.132,3780.6,3780.4,0.19850997]
[1753115594777,0.132,3781.0,3780.5,2.67158704]
[1753115595191,0.132,3781.0,3780.6,0.21132346]
[1753115595391,0.132,3781.0,3780.8,2.64493618]
[1753115595619,0.132,3781.0,3780.6,0.21132346]
[1753115595808,0.4533902,3781.0,3780.6,0.21132346]
[1753115596323,2.64488498,3780.9,3780.6,0.21132346]
[1753115596490,0.132,3780.7,3780.6,0.21132346]
[1753115597181,0.132,3780.7,3780.6,3.68845707]
[1753115597400,0.8305,3781.7,3780.6,3.68845707]
[1753115597401,0.132,3781.1,3780.6,1.04337428]
[1753115597694,2.24063605,3786.3,3781.0,10.75851252]
[1753115597894,10.75851252,3783.6,3781.1,1.09694178]
[1753115598108,9.51660625,3785.8,3781.1,1.09694178]
[1753115598109,0.132,3781.9,3781.1,0.02644733]
[1753115598310,0.132,3781.9,3780.2,0.20041527]
[1753115598311,0.4315,3781.8,3780.8,2.64491628]
[1753115598543,3.07578811,3781.8,3780.2,0.20041527]
[1753115598827,0.8259,3782.1,3780.8,2.64494247]
[1753115598985,5.4779,3782.1,3780.8,3.0]
[1753115599315,5.62929,3782.0,3781.0,2.64474539]
[1753115599519,2.64417356,3781.9,3780.9,2.85585283]
[1753115599821,2.64420915,3781.9,3781.1,0.21098985]
[1753115599984,0.97929,3782.0,3781.1,0.21098985]
[1753115600178,2.64424781,3781.8,3781.1,0.21098985]
[1753115600386,0.82695378,3781.7,3781.1,0.21098985]
[1753115600885,1.25845378,3781.7,3781.1,0.21098985]
[1753115601110,2.6444312,3781.6,3781.1,0.21098985]
[1753115601294,0.4315,3781.5,3781.1,0.21098985]
[1753115601620,3.07606975,3781.4,3781.1,0.21098985]
[1753115601827,0.30760698,3781.3,3781.1,0.21098985]
[1753115602319,0.4315,3781.4,3781.1,0.21098985]
[1753115602519,3.07604072,3781.4,3781.1,0.21098985]
[1753115602720,2.6442179,3781.9,3781.1,0.21098985]
[1753115602891,4.636,3781.6,3781.1,0.21098985]
[1753115603218,2.64466306,3781.2,3781.1,0.21098985]
[1753115603391,0.57206863,3781.2,3781.1,0.21098985]
[1753115603598,4.629,3781.3,3781.1,0.21098985]
[1753115604133,0.4315,3781.3,3781.1,0.21098985]
[1753115604280,0.4315,3781.2,3781.1,0.21098985]
[1753115604713,8.52676306,3781.2,3781.1,0.21098985]
[1753115605837,8.52676306,3781.2,3781.1,0.27098985]
[1753115606118,9.64389283,3781.2,3781.1,0.27098985]
[1753115607399,2.64505149,3780.7,3778.7,6.6721]
[1753115607601,2.64522272,3780.4,3779.0,0.02646202]
[1753115607803,2.64522272,3780.4,3778.0,10.75851252]
[1753115607804,4.02078974,3780.5,3778.4,2.64655777]
[1753115608010,2.64591037,3779.5,3778.6,3.0]
[1753115608328,0.132,3779.4,3778.8,0.132]
[1753115608503,0.132,3779.4,3778.9,0.02646272]
[1753115609406,0.132,3779.2,3778.7,3.0]
[1753115609620,0.132,3779.2,3778.6,3.13353188]
[1753115610132,2.64626775,3779.0,3778.5,0.15846552]
[1753115610331,2.64626775,3779.0,3778.4,0.19854882]
[1753115610332,4.596,3779.0,3778.4,0.19854882]
[1753115610492,4.728,3779.0,3778.4,0.02646622]
[1753115610694,0.132,3779.0,3778.4,0.22269596]
[1753115610894,4.728,3779.0,3778.4,0.02646622]
[1753115611095,2.64632151,3778.9,3778.4,0.20589161]
[1753115611291,7.37422912,3779.0,3778.4,0.17942539]
[1753115611492,2.64655286,3778.5,3778.4,0.17942539]
[1753115611916,0.132,3778.6,3778.4,0.17942539]
[1753115612126,4.591,3778.5,3778.4,0.37784847]
[1753115612333,4.588,3778.5,3778.4,0.17942539]
[1753115612528,5.0195,3778.5,3778.4,0.17942539]
[1753115612730,0.132,3778.6,3778.4,0.17942539]
[1753115613047,0.4315,3780.5,3778.6,0.55]
[1753115613351,2.64493029,3780.9,3779.3,3.0]
[1753115613549,0.8178,3781.2,3779.4,2.64592263]
[1753115613550,2.64522718,3780.4,3779.4,2.64592263]
[1753115613710,2.64516328,3780.5,3779.5,2.64585236]
[1753115613909,4.7465,3780.8,3779.1,2.972268]
[1753115614109,2.64540421,3780.2,3779.1,2.97231483]
[1753115614312,2.64544919,3780.1,3779.1,0.3262]
[1753115614517,2.64544919,3780.1,3778.9,3.0]
[1753115614518,2.64557545,3779.9,3778.9,2.64622707]
[1753115614917,4.585,3780.1,3778.8,0.3262]
[1753115615214,2.64562413,3779.9,3778.8,2.97248953]
[1753115615549,2.64573537,3779.7,3778.6,5.64642765]
[1753115615848,2.64598873,3779.4,3778.5,3.0]
[1753115616153,1.2493,3779.4,3778.4,0.3760439]
[1753115616355,2.64604298,3779.3,3778.4,0.3760439]
[1753115616517,2.64606395,3779.2,3778.4,0.3760439]
[1753115616718,1.2493,3779.4,3778.5,0.02646552]
[1753115616960,1.2493,3779.4,3778.4,0.3760439]
[1753115617167,2.64618214,3779.1,3778.4,0.3760439]
[1753115617627,2.6462134,3779.0,3778.4,0.3760439]
[1753115617824,0.4315,3779.2,3778.4,0.3760439]
[1753115618025,2.64639988,3778.8,3778.4,0.3760439]
[1753115618347,0.4315,3778.7,3778.4,0.3760439]
[1753115618751,3.07793651,3778.7,3778.4,0.3760439]
[1753115618949,0.4315,3778.6,3778.4,0.3760439]
[1753115619136,2.64641831,3778.7,3778.4,0.3760439]
[1753115619137,2.64655286,3778.5,3778.4,0.3760439]
[1753115619341,0.4315,3778.5,3778.4,0.3760439]
[1753115619544,3.07805286,3778.5,3778.4,0.3760439]
[1753115620121,7.63905286,3778.5,3778.4,0.3760439]
[1753115620316,4.561,3778.5,3778.4,0.3760439]
[1753115621319,2.64643824,3778.7,3778.4,0.3760439]
[1753115621520,2.6464813,3778.7,3778.4,0.3760439]
[1753115621748,0.4315,3779.1,3778.4,0.3760439]
[1753115621749,7.20150221,3778.6,3778.4,0.3760439]
[1753115622060,3.07805286,3778.5,3778.4,0.3760439]
[1753115622556,4.9001192,3778.5,3777.0,0.001]
[1753115622766,2.64710193,3777.8,3777.0,0.001]
[1753115622947,0.132,3777.7,3777.1,0.132]
[1753115623130,2.77911975,3777.7,3777.1,0.132]
[1753115623451,0.132,3777.7,3777.1,0.32967484]
[1753115623652,0.132,3777.7,3777.2,3.0]
[1753115623858,0.132,3777.7,3777.1,2.97715091]
[1753115624056,4.681,3777.7,3777.2,2.67393482]
[1753115624358,4.681,3777.7,3777.3,3.0]
[1753115624660,4.681,3777.7,3777.2,3.02647463]
[1753115625127,4.681,3777.7,3777.2,0.02647463]
[1753115625550,5.1125,3777.7,3777.2,0.02647463]
[1753115625747,5.1125,3777.7,3777.1,0.32967484]
[1753115626058,4.674,3777.7,3777.1,0.32967484]
[1753115626229,4.542,3777.7,3777.1,0.19767484]
[1753115626429,0.132,3777.5,3777.1,3.0]
[1753115626642,0.132,3777.5,3777.1,2.6475338]
[1753115626928,0.132,3777.5,3777.0,0.02747603]